[Event "Early-Titled-Tuesday-Blitz-September-26-2023"]
[Site "Chess.com"]
[Date "2023.09.26"]
[Round "6"]
[White "attack2mateU"]
[Black "DefiantChair"]
[Result "1-0"]
[WhiteElo "2740"]
[BlackElo "2573"]
[TimeControl "180+1"]
[EndTime "9:07:29 PDT"]
[Termination "attack2mateU won by resignation"]

1. e4 {[%clk 0:03:00.9]} 1... c5 {[%clk 0:03:00.1]} 2. Nf3 {[%clk 0:02:56.7]}
2... d6 {[%clk 0:03:00.4]} 3. d4 {[%clk 0:02:57.4]} 3... cxd4 {[%clk 0:03:01.3]}
4. Nxd4 {[%clk 0:02:57.8]} 4... Nf6 {[%clk 0:03:01.7]} 5. Nc3 {[%clk 0:02:58.4]}
5... a6 {[%clk 0:03:02.1]} 6. Be3 {[%clk 0:02:58.9]} 6... e5 {[%clk 0:03:02.3]}
7. Nb3 {[%clk 0:02:59.4]} 7... Be7 {[%clk 0:03:02.7]} 8. h3 {[%clk 0:02:59.7]}
8... h6 {[%clk 0:02:58.4]} 9. Qf3 {[%clk 0:03:00.1]} 9... b5 {[%clk 0:02:52.2]}
10. O-O-O {[%clk 0:03:00.5]} 10... Bb7 {[%clk 0:02:48.6]} 11. Nd5 {[%clk
0:03:00.3]} 11... Nbd7 {[%clk 0:02:29.1]} 12. Kb1 {[%clk 0:02:50.8]} 12... Rc8
{[%clk 0:02:14]} 13. g4 {[%clk 0:02:32]} 13... Nxd5 {[%clk 0:02:13]} 14. exd5
{[%clk 0:02:32.9]} 14... Bg5 {[%clk 0:02:06.2]} 15. h4 {[%clk 0:02:26]} 15...
Bxh4 {[%clk 0:01:59]} 16. Na5 {[%clk 0:02:25.9]} 16... Qxa5 {[%clk 0:01:32.3]}
17. Rxh4 {[%clk 0:02:25.4]} 17... Qc7 {[%clk 0:01:28.1]} 18. c3 {[%clk
0:02:21.5]} 18... Nf8 {[%clk 0:01:04.8]} 19. g5 {[%clk 0:02:14.8]} 19... Ng6
{[%clk 0:01:04.2]} 20. Rh1 {[%clk 0:02:04.3]} 20... hxg5 {[%clk 0:00:45.8]} 21.
Rxh8+ {[%clk 0:02:02.5]} 21... Nxh8 {[%clk 0:00:46.7]} 22. Bh3 {[%clk
0:01:45.7]} 22... Rd8 {[%clk 0:00:42.9]} 23. Bxg5 {[%clk 0:01:45.9]} 23... f6
{[%clk 0:00:40.6]} 24. Be6 {[%clk 0:00:52.9]} 24... fxg5 {[%clk 0:00:19.5]} 25.
Rh1 {[%clk 0:00:53.1]} 25... Nf7 {[%clk 0:00:18.5]} 26. Bxf7+ {[%clk 0:00:50.8]}
26... Qxf7 {[%clk 0:00:18.1]} 27. Rh8+ {[%clk 0:00:51.3]} 27... Ke7 {[%clk
0:00:17.1]} 28. Qxf7+ {[%clk 0:00:52]} 28... Kxf7 {[%clk 0:00:18]} 29. Rxd8
{[%clk 0:00:52.4]} 29... Bxd5 {[%clk 0:00:18.3]} 30. Rxd6 {[%clk 0:00:53.1]}
30... Be4+ {[%clk 0:00:18.8]} 31. Kc1 {[%clk 0:00:53.4]} 31... g4 {[%clk
0:00:19]} 32. Rxa6 {[%clk 0:00:53.3]} 32... Bd3 {[%clk 0:00:19.4]} 33. Kd2
{[%clk 0:00:53.3]} 33... Bc4 {[%clk 0:00:19.3]} 34. b3 {[%clk 0:00:53.2]} 1-0

[Event "Early-Titled-Tuesday-Blitz-September-26-2023"]
[Site "Chess.com"]
[Date "2023.09.26"]
[Round "6"]
[White "Arteler"]
[Black "KorolDimitriy75"]
[Result "1-0"]
[WhiteElo "2587"]
[BlackElo "2395"]
[TimeControl "180+1"]
[EndTime "9:07:32 PDT"]
[Termination "Arteler won on time"]

1. e4 {[%clk 0:02:56.7]} 1... c5 {[%clk 0:03:00.1]} 2. Nf3 {[%clk 0:02:56.9]}
2... d6 {[%clk 0:03:00.4]} 3. Bb5+ {[%clk 0:02:56.6]} 3... Nd7 {[%clk 0:03:00]}
4. O-O {[%clk 0:02:56.6]} 4... Nf6 {[%clk 0:02:59.8]} 5. e5 {[%clk 0:02:54.9]}
5... dxe5 {[%clk 0:02:59.3]} 6. Nxe5 {[%clk 0:02:55.6]} 6... a6 {[%clk
0:02:45.9]} 7. Bxd7+ {[%clk 0:02:48.1]} 7... Nxd7 {[%clk 0:02:40.1]} 8. Nf3
{[%clk 0:02:42.1]} 8... e6 {[%clk 0:02:33.8]} 9. d4 {[%clk 0:02:42.1]} 9... Be7
{[%clk 0:02:31.6]} 10. Be3 {[%clk 0:02:25.3]} 10... Qc7 {[%clk 0:02:04.5]} 11.
Nc3 {[%clk 0:02:20.1]} 11... O-O {[%clk 0:01:53.2]} 12. d5 {[%clk 0:02:19.5]}
12... Nf6 {[%clk 0:01:53]} 13. dxe6 {[%clk 0:02:18.7]} 13... Bxe6 {[%clk
0:01:53.9]} 14. Ng5 {[%clk 0:02:18.6]} 14... Bg4 {[%clk 0:01:47.7]} 15. Nd5
{[%clk 0:02:09.9]} 15... Nxd5 {[%clk 0:01:41]} 16. Qxd5 {[%clk 0:01:59.2]} 16...
h6 {[%clk 0:01:20.4]} 17. Qe4 {[%clk 0:01:46.9]} 17... Bxg5 {[%clk 0:01:18.5]}
18. Bxg5 {[%clk 0:01:43.3]} 18... Be6 {[%clk 0:01:06.5]} 19. Be3 {[%clk
0:01:42.1]} 19... Rfe8 {[%clk 0:00:49.9]} 20. Qf3 {[%clk 0:01:29.8]} 20... Rad8
{[%clk 0:00:45.6]} 21. Rfd1 {[%clk 0:01:29.3]} 21... b5 {[%clk 0:00:33.8]} 22.
h3 {[%clk 0:01:27]} 22... c4 {[%clk 0:00:12.4]} 23. a4 {[%clk 0:01:26.9]} 23...
Rxd1+ {[%clk 0:00:10.4]} 24. Qxd1 {[%clk 0:01:27]} 24... Rd8 {[%clk 0:00:09]}
25. Qh5 {[%clk 0:01:26.7]} 25... Rd5 {[%clk 0:00:07.6]} 26. Qf3 {[%clk
0:01:23.7]} 26... Qe5 {[%clk 0:00:04.5]} 27. c3 {[%clk 0:01:18.1]} 27... Qf5
{[%clk 0:00:04]} 28. Qg3 {[%clk 0:01:16.3]} 28... Qg6 {[%clk 0:00:03.1]} 29.
Qxg6 {[%clk 0:01:02.1]} 29... fxg6 {[%clk 0:00:04]} 30. axb5 {[%clk 0:01:02.7]}
30... axb5 {[%clk 0:00:03.6]} 31. Ra7 {[%clk 0:01:02.9]} 31... Bf5 {[%clk
0:00:02.4]} 32. Rb7 {[%clk 0:00:59.8]} 1-0

[Event "Early-Titled-Tuesday-Blitz-September-26-2023"]
[Site "Chess.com"]
[Date "2023.09.26"]
[Round "6"]
[White "ashookk"]
[Black "Me_ch_an"]
[Result "1/2-1/2"]
[WhiteElo "2241"]
[BlackElo "2340"]
[TimeControl "180+1"]
[EndTime "9:07:41 PDT"]
[Termination "Game drawn by agreement"]

1. Nf3 {[%clk 0:03:00.9]} 1... d5 {[%clk 0:02:59.6]} 2. c4 {[%clk 0:03:00.6]}
2... dxc4 {[%clk 0:02:59.6]} 3. e3 {[%clk 0:03:00]} 3... Nf6 {[%clk 0:02:59.1]}
4. Bxc4 {[%clk 0:03:00.2]} 4... e6 {[%clk 0:02:59.5]} 5. O-O {[%clk 0:03:00.1]}
5... a6 {[%clk 0:02:58.7]} 6. d4 {[%clk 0:03:00]} 6... c5 {[%clk 0:02:58.9]} 7.
Qe2 {[%clk 0:02:59.1]} 7... b5 {[%clk 0:02:58.6]} 8. Bb3 {[%clk 0:02:54.7]} 8...
cxd4 {[%clk 0:02:52.9]} 9. exd4 {[%clk 0:02:53.5]} 9... Bb7 {[%clk 0:02:52]} 10.
Rd1 {[%clk 0:02:53.9]} 10... Be7 {[%clk 0:02:49.9]} 11. Nc3 {[%clk 0:02:52.8]}
11... O-O {[%clk 0:02:45.3]} 12. Bg5 {[%clk 0:02:41.8]} 12... Nd5 {[%clk
0:02:34.3]} 13. Bxe7 {[%clk 0:02:35.5]} 13... Nxe7 {[%clk 0:02:34.2]} 14. Ne4
{[%clk 0:02:22.4]} 14... Bd5 {[%clk 0:02:30.3]} 15. Bc2 {[%clk 0:02:20]} 15...
Nd7 {[%clk 0:02:29.3]} 16. Nc3 {[%clk 0:02:15.7]} 16... Nf6 {[%clk 0:02:25.5]}
17. Ne5 {[%clk 0:02:00.4]} 17... Rc8 {[%clk 0:02:21.4]} 18. a3 {[%clk
0:01:59.3]} 18... Ng6 {[%clk 0:02:13.6]} 19. Rac1 {[%clk 0:01:34.8]} 19... Nf4
{[%clk 0:02:05.6]} 20. Qe3 {[%clk 0:01:15.8]} 20... Nxg2 {[%clk 0:01:53.7]} 21.
Qg3 {[%clk 0:01:16.1]} 21... Nh5 {[%clk 0:01:44.9]} 22. Qd3 {[%clk 0:00:51.4]}
22... f5 {[%clk 0:01:36.4]} 23. Nxd5 {[%clk 0:00:51]} 23... Qxd5 {[%clk
0:01:36]} 24. Bb3 {[%clk 0:00:51.4]} 24... Qd6 {[%clk 0:01:16]} 25. Rxc8 {[%clk
0:00:44.7]} 25... Rxc8 {[%clk 0:01:15.1]} 26. Qxf5 {[%clk 0:00:43.6]} 26... Ngf4
{[%clk 0:00:57.9]} 27. Qf7+ {[%clk 0:00:22.6]} 27... Kh8 {[%clk 0:00:57.1]} 28.
Qxh5 {[%clk 0:00:19.1]} 1/2-1/2

[Event "Early-Titled-Tuesday-Blitz-September-26-2023"]
[Site "Chess.com"]
[Date "2023.09.26"]
[Round "6"]
[White "platy3"]
[Black "DTChess"]
[Result "1-0"]
[WhiteElo "2862"]
[BlackElo "2593"]
[TimeControl "180+1"]
[EndTime "9:07:44 PDT"]
[Termination "platy3 won by resignation"]

1. d4 {[%clk 0:03:00.9]} 1... Nf6 {[%clk 0:02:58.4]} 2. Nf3 {[%clk 0:03:00.9]}
2... e6 {[%clk 0:02:58.5]} 3. c4 {[%clk 0:03:01.3]} 3... b6 {[%clk 0:02:58.1]}
4. g3 {[%clk 0:02:59.8]} 4... Bb7 {[%clk 0:02:58.2]} 5. Bg2 {[%clk 0:02:59.7]}
5... g6 {[%clk 0:02:58.7]} 6. O-O {[%clk 0:02:59.9]} 6... Bg7 {[%clk 0:02:57.9]}
7. Nc3 {[%clk 0:03:00.4]} 7... O-O {[%clk 0:02:57.8]} 8. Qc2 {[%clk 0:03:01.1]}
8... d5 {[%clk 0:02:55.5]} 9. cxd5 {[%clk 0:03:02]} 9... exd5 {[%clk 0:02:55.7]}
10. Bf4 {[%clk 0:03:02.3]} 10... c6 {[%clk 0:02:55.8]} 11. Ne5 {[%clk
0:03:00.8]} 11... Nbd7 {[%clk 0:02:55.6]} 12. e4 {[%clk 0:03:01]} 12... dxe4
{[%clk 0:02:52.4]} 13. Nxe4 {[%clk 0:03:00.7]} 13... Nxe4 {[%clk 0:02:31.9]} 14.
Bxe4 {[%clk 0:03:01.6]} 14... Nxe5 {[%clk 0:02:32.3]} 15. dxe5 {[%clk
0:03:01.5]} 15... Qe7 {[%clk 0:02:29.5]} 16. Rfe1 {[%clk 0:03:00.2]} 16... c5
{[%clk 0:02:27.7]} 17. h4 {[%clk 0:02:54.5]} 17... Bxe4 {[%clk 0:02:16.3]} 18.
Qxe4 {[%clk 0:02:54.1]} 18... Qe6 {[%clk 0:02:16.7]} 19. Red1 {[%clk 0:02:33.4]}
19... Rfd8 {[%clk 0:02:13.7]} 20. b3 {[%clk 0:02:31.7]} 20... h6 {[%clk
0:01:57.5]} 21. Kg2 {[%clk 0:02:26.6]} 21... a5 {[%clk 0:01:55.6]} 22. Rd2
{[%clk 0:02:17.3]} 22... Rac8 {[%clk 0:01:40.3]} 23. Rad1 {[%clk 0:02:16.4]}
23... Rxd2 {[%clk 0:01:40.5]} 24. Rxd2 {[%clk 0:02:17.3]} 24... Rc6 {[%clk
0:01:36.8]} 25. Rd8+ {[%clk 0:02:14]} 25... Kh7 {[%clk 0:01:35.8]} 26. h5 {[%clk
0:02:13.1]} 26... c4 {[%clk 0:01:30.8]} 27. bxc4 {[%clk 0:02:07.4]} 27... Rxc4
{[%clk 0:01:30.8]} 28. hxg6+ {[%clk 0:02:07.5]} 28... fxg6 {[%clk 0:01:28.9]}
29. Qb7 {[%clk 0:02:02.5]} 29... g5 {[%clk 0:01:10]} 30. Rd7 {[%clk 0:01:34]}
30... Qc6+ {[%clk 0:01:02.6]} 31. Qxc6 {[%clk 0:01:33.6]} 31... Rxc6 {[%clk
0:01:02.8]} 32. Be3 {[%clk 0:01:32.9]} 32... Kg6 {[%clk 0:01:02.7]} 33. f4
{[%clk 0:01:31.5]} 33... g4 {[%clk 0:00:57.3]} 34. f5+ {[%clk 0:01:28.3]} 34...
Kxf5 {[%clk 0:00:54.9]} 35. Rxg7 {[%clk 0:01:27.3]} 35... Rc2+ {[%clk
0:00:53.7]} 36. Bf2 {[%clk 0:01:24.1]} 36... Kxe5 {[%clk 0:00:54.1]} 37. Rxg4
{[%clk 0:01:22.2]} 37... Rxa2 {[%clk 0:00:48.2]} 38. Rg6 {[%clk 0:01:10.9]}
38... b5 {[%clk 0:00:46.4]} 39. Rxh6 {[%clk 0:01:10.7]} 39... b4 {[%clk
0:00:45.9]} 40. Rb6 {[%clk 0:01:10.8]} 40... Kd5 {[%clk 0:00:42.4]} 41. Kf3
{[%clk 0:01:10.2]} 41... Kc4 {[%clk 0:00:41.7]} 42. g4 {[%clk 0:01:10]} 42... a4
{[%clk 0:00:36.6]} 43. g5 {[%clk 0:01:09.3]} 43... b3 {[%clk 0:00:37.1]} 44. g6
{[%clk 0:01:07.6]} 44... b2 {[%clk 0:00:36.7]} 45. g7 {[%clk 0:01:06.8]} 45...
Ra3+ {[%clk 0:00:36.6]} 46. Be3 {[%clk 0:01:05.5]} 46... Rb3 {[%clk 0:00:35.3]}
47. g8=Q+ {[%clk 0:01:04.7]} 47... Kc3 {[%clk 0:00:35.1]} 48. Rc6+ {[%clk
0:01:01.1]} 48... Kb4 {[%clk 0:00:30.1]} 49. Qf8+ {[%clk 0:00:57.5]} 1-0

[Event "Early-Titled-Tuesday-Blitz-September-26-2023"]
[Site "Chess.com"]
[Date "2023.09.26"]
[Round "6"]
[White "Djager97"]
[Black "FontVella8"]
[Result "0-1"]
[WhiteElo "2555"]
[BlackElo "2711"]
[TimeControl "180+1"]
[EndTime "9:07:53 PDT"]
[Termination "FontVella8 won by resignation"]

1. e4 {[%clk 0:03:00.9]} 1... c6 {[%clk 0:02:58.2]} 2. d4 {[%clk 0:03:00.7]}
2... d5 {[%clk 0:02:58.3]} 3. exd5 {[%clk 0:03:01.6]} 3... cxd5 {[%clk
0:02:58.4]} 4. Bd3 {[%clk 0:03:02.3]} 4... Nf6 {[%clk 0:02:59.1]} 5. h3 {[%clk
0:03:01.3]} 5... Nc6 {[%clk 0:02:59.3]} 6. c3 {[%clk 0:03:01.8]} 6... g6 {[%clk
0:02:59.4]} 7. Nf3 {[%clk 0:03:02.4]} 7... Bf5 {[%clk 0:02:59.8]} 8. Be2 {[%clk
0:03:02.9]} 8... e6 {[%clk 0:02:59.5]} 9. O-O {[%clk 0:03:00.4]} 9... Bd6 {[%clk
0:02:56.6]} 10. Bh6 {[%clk 0:02:58.7]} 10... Ne4 {[%clk 0:02:55.7]} 11. Nbd2
{[%clk 0:02:53.2]} 11... Qf6 {[%clk 0:02:45.5]} 12. Nxe4 {[%clk 0:02:39.4]}
12... Bxe4 {[%clk 0:02:42.3]} 13. Bg5 {[%clk 0:02:28.9]} 13... Qg7 {[%clk
0:02:41.7]} 14. Qd2 {[%clk 0:02:23.6]} 14... f6 {[%clk 0:02:32.9]} 15. Be3
{[%clk 0:02:23.2]} 15... g5 {[%clk 0:02:30.5]} 16. c4 {[%clk 0:02:19]} 16... h5
{[%clk 0:02:30.5]} 17. cxd5 {[%clk 0:02:16.2]} 17... exd5 {[%clk 0:02:30.7]} 18.
Ne1 {[%clk 0:02:04.4]} 18... O-O-O {[%clk 0:02:21.5]} 19. Nd3 {[%clk 0:01:50.7]}
19... g4 {[%clk 0:02:19.1]} 20. h4 {[%clk 0:01:49.8]} 20... Ne7 {[%clk
0:02:11.3]} 21. Nf4 {[%clk 0:01:31.1]} 21... Qg8 {[%clk 0:01:46]} 22. a4 {[%clk
0:01:18.7]} 22... Nf5 {[%clk 0:01:44.9]} 23. a5 {[%clk 0:01:09.2]} 23... Nxh4
{[%clk 0:01:43.3]} 24. a6 {[%clk 0:01:09.1]} 24... Nf3+ {[%clk 0:01:33.4]} 25.
Bxf3 {[%clk 0:01:00.3]} 25... gxf3 {[%clk 0:01:32.9]} 26. axb7+ {[%clk
0:01:01.2]} 26... Kd7 {[%clk 0:01:28.5]} 27. Rxa7 {[%clk 0:00:33.9]} 27... Rb8
{[%clk 0:01:28.4]} 28. g3 {[%clk 0:00:12.5]} 28... h4 {[%clk 0:01:28.3]} 29. Ra6
{[%clk 0:00:11.7]} 29... hxg3 {[%clk 0:00:47.9]} 30. Rxd6+ {[%clk 0:00:11]}
30... Ke7 {[%clk 0:00:48.4]} 31. Re6+ {[%clk 0:00:09.1]} 31... Kf7 {[%clk
0:00:41.3]} 32. Qb4 {[%clk 0:00:06.8]} 32... Rh1+ {[%clk 0:00:38.6]} 33. Kxh1
{[%clk 0:00:06.6]} 33... Qh7+ {[%clk 0:00:38.4]} 0-1

[Event "Early-Titled-Tuesday-Blitz-September-26-2023"]
[Site "Chess.com"]
[Date "2023.09.26"]
[Round "6"]
[White "Mikhail_Bryakin"]
[Black "vugarrasulov"]
[Result "0-1"]
[WhiteElo "2841"]
[BlackElo "2953"]
[TimeControl "180+1"]
[EndTime "9:07:56 PDT"]
[Termination "vugarrasulov won on time"]

1. d4 {[%clk 0:02:59.8]} 1... Nf6 {[%clk 0:03:00]} 2. Nc3 {[%clk 0:02:58.5]}
2... e6 {[%clk 0:02:54.7]} 3. e4 {[%clk 0:02:55.6]} 3... d5 {[%clk 0:02:54.9]}
4. Bg5 {[%clk 0:02:54.6]} 4... Be7 {[%clk 0:02:49.4]} 5. e5 {[%clk 0:02:53.8]}
5... Nfd7 {[%clk 0:02:49.9]} 6. h4 {[%clk 0:02:54.1]} 6... a6 {[%clk 0:02:49.5]}
7. Bxe7 {[%clk 0:02:34.5]} 7... Qxe7 {[%clk 0:02:50.4]} 8. f4 {[%clk 0:02:34.9]}
8... c5 {[%clk 0:02:50]} 9. Nf3 {[%clk 0:02:35.3]} 9... Nc6 {[%clk 0:02:50.6]}
10. Qd2 {[%clk 0:02:34.9]} 10... b5 {[%clk 0:02:44.6]} 11. h5 {[%clk 0:02:32.2]}
11... Bb7 {[%clk 0:02:32.9]} 12. Ne2 {[%clk 0:02:25.5]} 12... f6 {[%clk
0:02:25.7]} 13. c3 {[%clk 0:02:21.2]} 13... O-O {[%clk 0:02:25.7]} 14. h6 {[%clk
0:02:17.6]} 14... g6 {[%clk 0:02:24.5]} 15. Ng3 {[%clk 0:02:10]} 15... Rac8
{[%clk 0:02:16.5]} 16. Bd3 {[%clk 0:01:49.3]} 16... cxd4 {[%clk 0:02:10.5]} 17.
cxd4 {[%clk 0:01:49.4]} 17... fxe5 {[%clk 0:02:10.8]} 18. fxe5 {[%clk 0:01:47]}
18... Rxf3 {[%clk 0:02:06]} 19. gxf3 {[%clk 0:01:47.1]} 19... Nxd4 {[%clk
0:02:06.7]} 20. Qe3 {[%clk 0:01:37.8]} 20... Nxe5 {[%clk 0:01:50.7]} 21. O-O
{[%clk 0:01:35.4]} 21... Qf6 {[%clk 0:01:50.6]} 22. f4 {[%clk 0:00:53.1]} 22...
Ng4 {[%clk 0:01:43.8]} 23. Qd2 {[%clk 0:00:53.5]} 23... Qh4 {[%clk 0:01:36.8]}
24. Nh1 {[%clk 0:00:51.5]} 24... Qxh6 {[%clk 0:01:25.6]} 25. Rae1 {[%clk
0:00:48.5]} 25... Rf8 {[%clk 0:01:16.5]} 26. Bb1 {[%clk 0:00:23.9]} 26... e5
{[%clk 0:01:14.6]} 27. Ng3 {[%clk 0:00:11.8]} 27... e4 {[%clk 0:01:06.3]} 28.
Qg2 {[%clk 0:00:05]} 28... Nf3+ {[%clk 0:01:01.6]} 29. Rxf3 {[%clk 0:00:05.6]}
29... exf3 {[%clk 0:01:02.5]} 30. Qxf3 {[%clk 0:00:06.5]} 30... d4 {[%clk
0:00:44.5]} 31. Qb3+ {[%clk 0:00:03.6]} 31... Kh8 {[%clk 0:00:44.2]} 32. Re2
{[%clk 0:00:03.3]} 32... Qxf4 {[%clk 0:00:41.4]} 33. Bxg6 {[%clk 0:00:02.7]}
33... Qc1+ {[%clk 0:00:40.7]} 0-1

[Event "Early-Titled-Tuesday-Blitz-September-26-2023"]
[Site "Chess.com"]
[Date "2023.09.26"]
[Round "6"]
[White "Lennis93"]
[Black "Just_Lucky_1"]
[Result "1-0"]
[WhiteElo "2730"]
[BlackElo "2578"]
[TimeControl "180+1"]
[EndTime "9:07:59 PDT"]
[Termination "Lennis93 won by resignation"]

1. e4 {[%clk 0:03:00.9]} 1... c5 {[%clk 0:02:57.8]} 2. Nf3 {[%clk 0:03:00.3]}
2... d6 {[%clk 0:02:57.9]} 3. Bc4 {[%clk 0:02:58.6]} 3... Nf6 {[%clk 0:02:57.8]}
4. Nc3 {[%clk 0:02:58.9]} 4... a6 {[%clk 0:02:57.6]} 5. d4 {[%clk 0:02:59.1]}
5... cxd4 {[%clk 0:02:57.3]} 6. Nxd4 {[%clk 0:02:58]} 6... e6 {[%clk 0:02:57.9]}
7. O-O {[%clk 0:02:57.6]} 7... Nbd7 {[%clk 0:02:57.4]} 8. Bxe6 {[%clk
0:02:57.2]} 8... fxe6 {[%clk 0:02:56.3]} 9. Nxe6 {[%clk 0:02:58.1]} 9... Qb6
{[%clk 0:02:56.7]} 10. Be3 {[%clk 0:02:56.8]} 10... Nc5 {[%clk 0:02:56.9]} 11.
Nxf8 {[%clk 0:02:35]} 11... Rxf8 {[%clk 0:02:50]} 12. e5 {[%clk 0:02:33.3]}
12... Ng4 {[%clk 0:02:46.2]} 13. exd6 {[%clk 0:01:58]} 13... Nxe3 {[%clk
0:02:42.5]} 14. Qh5+ {[%clk 0:01:51.8]} 14... g6 {[%clk 0:02:27.1]} 15. Qe5+
{[%clk 0:01:51.5]} 15... Be6 {[%clk 0:02:19.9]} 16. fxe3 {[%clk 0:01:51.5]}
16... O-O-O {[%clk 0:02:16.4]} 17. Rxf8 {[%clk 0:01:29.5]} 17... Rxf8 {[%clk
0:02:17.3]} 18. Rd1 {[%clk 0:01:28.5]} 18... Bd7 {[%clk 0:01:47.9]} 19. Nd5
{[%clk 0:01:27.1]} 19... Qb5 {[%clk 0:01:44.2]} 20. c4 {[%clk 0:01:22.4]} 20...
Qa5 {[%clk 0:01:14.6]} 21. b4 {[%clk 0:01:08.8]} 21... Qxa2 {[%clk 0:01:13.8]}
22. Nf6 {[%clk 0:00:50.5]} 22... Ne6 {[%clk 0:00:54.7]} 23. h3 {[%clk
0:00:46.7]} 23... Qxc4 {[%clk 0:00:30.2]} 24. Nxh7 {[%clk 0:00:45]} 24... Qc2
{[%clk 0:00:19.8]} 25. Ra1 {[%clk 0:00:26.3]} 25... Rf2 {[%clk 0:00:15.4]} 26.
Qg3 {[%clk 0:00:21]} 26... Bc6 {[%clk 0:00:13.9]} 27. Qxf2 {[%clk 0:00:17.7]}
1-0

[Event "Early-Titled-Tuesday-Blitz-September-26-2023"]
[Site "Chess.com"]
[Date "2023.09.26"]
[Round "6"]
[White "Zavgorodniy_Sergiy"]
[Black "scarabee43"]
[Result "0-1"]
[WhiteElo "2584"]
[BlackElo "2782"]
[TimeControl "180+1"]
[EndTime "9:08:02 PDT"]
[Termination "scarabee43 won on time"]

1. e4 {[%clk 0:02:52.6]} 1... c5 {[%clk 0:02:58.9]} 2. Nf3 {[%clk 0:02:47.5]}
2... e6 {[%clk 0:02:58.9]} 3. d3 {[%clk 0:02:42.6]} 3... Nc6 {[%clk 0:02:58.2]}
4. g3 {[%clk 0:02:41.9]} 4... g6 {[%clk 0:02:53.5]} 5. Bg5 {[%clk 0:02:41.6]}
5... f6 {[%clk 0:02:47.1]} 6. Be3 {[%clk 0:02:37]} 6... Bg7 {[%clk 0:02:47.4]}
7. c3 {[%clk 0:02:28.4]} 7... b6 {[%clk 0:02:43.5]} 8. d4 {[%clk 0:02:28.3]}
8... cxd4 {[%clk 0:02:42.5]} 9. cxd4 {[%clk 0:02:29.2]} 9... d5 {[%clk
0:02:36.9]} 10. exd5 {[%clk 0:02:16.7]} 10... exd5 {[%clk 0:02:36.1]} 11. Bg2
{[%clk 0:02:12.8]} 11... Nge7 {[%clk 0:02:36.3]} 12. O-O {[%clk 0:02:12.5]}
12... O-O {[%clk 0:02:35.6]} 13. Re1 {[%clk 0:02:13]} 13... Nf5 {[%clk
0:02:31.3]} 14. Nc3 {[%clk 0:02:09.9]} 14... Nxe3 {[%clk 0:02:31]} 15. Rxe3
{[%clk 0:02:09.3]} 15... Bb7 {[%clk 0:02:25.9]} 16. Re1 {[%clk 0:01:45.2]} 16...
Qd7 {[%clk 0:02:21.4]} 17. Qb3 {[%clk 0:01:34.4]} 17... Na5 {[%clk 0:02:19.2]}
18. Qb5 {[%clk 0:01:34.4]} 18... Bc6 {[%clk 0:02:18.3]} 19. Qd3 {[%clk 0:01:34]}
19... Nc4 {[%clk 0:02:13.1]} 20. b3 {[%clk 0:01:24.8]} 20... Nd6 {[%clk
0:02:13.5]} 21. Nd2 {[%clk 0:01:23.5]} 21... Rad8 {[%clk 0:01:55.7]} 22. b4
{[%clk 0:01:09.4]} 22... f5 {[%clk 0:01:40.4]} 23. a4 {[%clk 0:01:03.6]} 23...
Ne4 {[%clk 0:01:39.8]} 24. b5 {[%clk 0:01:01.3]} 24... Ba8 {[%clk 0:01:36.6]}
25. f3 {[%clk 0:01:00.7]} 25... Nxc3 {[%clk 0:01:25]} 26. Qxc3 {[%clk
0:01:01.6]} 26... Rc8 {[%clk 0:01:24.9]} 27. Qd3 {[%clk 0:01:01.4]} 27... f4
{[%clk 0:01:25.2]} 28. Rac1 {[%clk 0:00:44.5]} 28... Qd6 {[%clk 0:01:22.5]} 29.
Bh3 {[%clk 0:00:14.3]} 29... Rxc1 {[%clk 0:01:21.7]} 30. Rxc1 {[%clk 0:00:15.2]}
30... fxg3 {[%clk 0:01:20.6]} 31. Nf1 {[%clk 0:00:09.7]} 31... gxh2+ {[%clk
0:01:20.3]} 32. Nxh2 {[%clk 0:00:10.6]} 32... Qf4 {[%clk 0:01:11.6]} 33. Rd1
{[%clk 0:00:06.6]} 33... Bb7 {[%clk 0:01:07.9]} 34. Kg2 {[%clk 0:00:04.4]} 34...
Bc8 {[%clk 0:01:00.2]} 35. Bxc8 {[%clk 0:00:03.2]} 35... Rxc8 {[%clk 0:01:00.9]}
36. Nf1 {[%clk 0:00:02.7]} 36... Rc4 {[%clk 0:00:59]} 37. Ne3 {[%clk 0:00:01.5]}
37... Rxd4 {[%clk 0:00:58.6]} 38. Qe2 {[%clk 0:00:02.1]} 38... Rxd1 {[%clk
0:00:57.6]} 39. Nxd1 {[%clk 0:00:03]} 39... h5 {[%clk 0:00:57.1]} 40. Qe6+
{[%clk 0:00:02.4]} 40... Kh7 {[%clk 0:00:56.6]} 41. Qxd5 {[%clk 0:00:02.5]}
41... Qxa4 {[%clk 0:00:56.7]} 42. Nf2 {[%clk 0:00:01.2]} 42... Qc2 {[%clk
0:00:54.8]} 0-1

[Event "Early-Titled-Tuesday-Blitz-September-26-2023"]
[Site "Chess.com"]
[Date "2023.09.26"]
[Round "6"]
[White "vedantgoswami"]
[Black "Rital44"]
[Result "0-1"]
[WhiteElo "2351"]
[BlackElo "2532"]
[TimeControl "180+1"]
[EndTime "9:08:07 PDT"]
[Termination "Rital44 won on time"]

1. g3 {[%clk 0:02:54.6]} 1... Nc6 {[%clk 0:02:59.3]} 2. Bg2 {[%clk 0:02:54.4]}
2... d5 {[%clk 0:02:57.6]} 3. c4 {[%clk 0:02:53.8]} 3... dxc4 {[%clk 0:02:56.4]}
4. Nf3 {[%clk 0:02:51.9]} 4... Nf6 {[%clk 0:02:55.9]} 5. O-O {[%clk 0:02:48]}
5... e5 {[%clk 0:02:51.1]} 6. Qc2 {[%clk 0:02:44.4]} 6... Bd6 {[%clk 0:02:44.3]}
7. Qxc4 {[%clk 0:02:42.7]} 7... O-O {[%clk 0:02:43.8]} 8. Nc3 {[%clk 0:02:42.3]}
8... a6 {[%clk 0:02:28.7]} 9. d3 {[%clk 0:02:34.3]} 9... h6 {[%clk 0:02:21.9]}
10. Bd2 {[%clk 0:02:26]} 10... Qe7 {[%clk 0:02:21.4]} 11. a3 {[%clk 0:02:10.4]}
11... Be6 {[%clk 0:02:20.4]} 12. Qa4 {[%clk 0:02:09.5]} 12... b5 {[%clk
0:02:17.5]} 13. Qh4 {[%clk 0:02:06.1]} 13... Rab8 {[%clk 0:02:15.5]} 14. Rfc1
{[%clk 0:01:51.7]} 14... Nd4 {[%clk 0:02:01]} 15. Nxd4 {[%clk 0:01:42]} 15...
exd4 {[%clk 0:02:01.3]} 16. Qxd4 {[%clk 0:01:39.2]} 16... Ng4 {[%clk 0:01:46.4]}
17. Ne4 {[%clk 0:01:12.9]} 17... Be5 {[%clk 0:01:45.9]} 18. Qa7 {[%clk
0:00:38.9]} 18... Rb6 {[%clk 0:01:23.2]} 19. Bc3 {[%clk 0:00:34.4]} 19... f5
{[%clk 0:01:01.6]} 20. Bxe5 {[%clk 0:00:26.1]} 20... Nxe5 {[%clk 0:00:57]} 21.
Rxc7 {[%clk 0:00:25.2]} 21... Nd7 {[%clk 0:00:47.3]} 22. Rxd7 {[%clk 0:00:22.1]}
22... Qxd7 {[%clk 0:00:45.3]} 23. Qxb6 {[%clk 0:00:20.6]} 23... fxe4 {[%clk
0:00:45.8]} 24. Bxe4 {[%clk 0:00:19.6]} 24... Qc8 {[%clk 0:00:41.5]} 25. Qd6
{[%clk 0:00:15.2]} 25... Rd8 {[%clk 0:00:38.6]} 26. Qe5 {[%clk 0:00:14.5]} 26...
Re8 {[%clk 0:00:33.4]} 27. Qf4 {[%clk 0:00:13.4]} 27... Qc2 {[%clk 0:00:31.3]}
28. Rc1 {[%clk 0:00:12.5]} 28... Qxe2 {[%clk 0:00:30.8]} 29. Qf3 {[%clk
0:00:05.2]} 29... Qxb2 {[%clk 0:00:29.2]} 30. Rc7 {[%clk 0:00:04.8]} 30... Qe5
{[%clk 0:00:29.2]} 31. Qe3 {[%clk 0:00:03.8]} 31... Qxc7 {[%clk 0:00:28.6]} 0-1